{"text_format":"3","workbook":"xlsx","n_sheets":1,"sheets":["Alışveriş Listesi"],"not_rendered":{"images":1,"defined_names":3},"read":"whole","date_system":"1900"}

{"sheet":"Alışveriş Listesi","index":0,"n_rows":31,"n_cols":8,"rows_kept":31,"merged":[[1,1,1,2]]}
[null,"Alışveriş Listesi"]
[null,"TARİH"]
[null,"Alındı mı?","Öğe","Kategori","Miktar","Fiyat","Toplam Fiyat","Marka/Açıklamalar"]
[null,null,"Portakal","Sebze/Meyve",null,null,{"$f":"IFERROR(SUM(AlışverişListesi[Miktar]*AlışverişListesi[Fiyat]), \"\")","v":{"v":0,"d":"0.00 ₺"}}]
[null,null,"Elma","Sebze/Meyve",null,null,{"$f":"IFERROR(SUM(AlışverişListesi[Miktar]*AlışverişListesi[Fiyat]), \"\")","v":{"v":0,"d":"0.00 ₺"}}]
[null,null,"Muz","Sebze/Meyve",null,null,{"$f":"IFERROR(SUM(AlışverişListesi[Miktar]*AlışverişListesi[Fiyat]), \"\")","v":{"v":0,"d":"0.00 ₺"}}]
[null,null,"Marul","Sebze/Meyve",null,null,{"$f":"IFERROR(SUM(AlışverişListesi[Miktar]*AlışverişListesi[Fiyat]), \"\")","v":{"v":0,"d":"0.00 ₺"}}]
[null,null,"Domates","Sebze/Meyve",null,null,{"$f":"IFERROR(SUM(AlışverişListesi[Miktar]*AlışverişListesi[Fiyat]), \"\")","v":{"v":0,"d":"0.00 ₺"}},"  "]
[null,null,"Süt ","Süt ürünleri",null,null,{"$f":"IFERROR(SUM(AlışverişListesi[Miktar]*AlışverişListesi[Fiyat]), \"\")","v":{"v":0,"d":"0.00 ₺"}}]
[null,null,"Peynir","Süt ürünleri",null,null,{"$f":"IFERROR(SUM(AlışverişListesi[Miktar]*AlışverişListesi[Fiyat]), \"\")","v":{"v":0,"d":"0.00 ₺"}}]
[null,null,"Yumurta","Süt ürünleri",null,null,{"$f":"IFERROR(SUM(AlışverişListesi[Miktar]*AlışverişListesi[Fiyat]), \"\")","v":{"v":0,"d":"0.00 ₺"}}]
[null,null,"Süzme peynir","Süt ürünleri",null,null,{"$f":"IFERROR(SUM(AlışverişListesi[Miktar]*AlışverişListesi[Fiyat]), \"\")","v":{"v":0,"d":"0.00 ₺"}}]
[null,null,"Kırmızı et","Et ürünleri",null,null,{"$f":"IFERROR(SUM(AlışverişListesi[Miktar]*AlışverişListesi[Fiyat]), \"\")","v":{"v":0,"d":"0.00 ₺"}}]
[null,null,"Beyaz et","Et ürünleri",null,null,{"$f":"IFERROR(SUM(AlışverişListesi[Miktar]*AlışverişListesi[Fiyat]), \"\")","v":{"v":0,"d":"0.00 ₺"}}]
[null,null,"Balık","Et ürünleri",null,null,{"$f":"IFERROR(SUM(AlışverişListesi[Miktar]*AlışverişListesi[Fiyat]), \"\")","v":{"v":0,"d":"0.00 ₺"}}]
[null,null,"Meyve suyu","İçecekler",null,null,{"$f":"IFERROR(SUM(AlışverişListesi[Miktar]*AlışverişListesi[Fiyat]), \"\")","v":{"v":0,"d":"0.00 ₺"}}]
[null,null,"Kahve","İçecekler",null,null,{"$f":"IFERROR(SUM(AlışverişListesi[Miktar]*AlışverişListesi[Fiyat]), \"\")","v":{"v":0,"d":"0.00 ₺"}}]
[null,null,"Çay","İçecekler",null,null,{"$f":"IFERROR(SUM(AlışverişListesi[Miktar]*AlışverişListesi[Fiyat]), \"\")","v":{"v":0,"d":"0.00 ₺"}}]
[null,null,"Su","İçecekler",null,null,{"$f":"IFERROR(SUM(AlışverişListesi[Miktar]*AlışverişListesi[Fiyat]), \"\")","v":{"v":0,"d":"0.00 ₺"}}]
[null,null,"Makarna","Kuru bakliyat",null,null,{"$f":"IFERROR(SUM(AlışverişListesi[Miktar]*AlışverişListesi[Fiyat]), \"\")","v":{"v":0,"d":"0.00 ₺"}}]
[null,null,"Pirinç","Kuru bakliyat",null,null,{"$f":"IFERROR(SUM(AlışverişListesi[Miktar]*AlışverişListesi[Fiyat]), \"\")","v":{"v":0,"d":"0.00 ₺"}}]
[null,null,"Konserve","Çorba",null,null,{"$f":"IFERROR(SUM(AlışverişListesi[Miktar]*AlışverişListesi[Fiyat]), \"\")","v":{"v":0,"d":"0.00 ₺"}}]
[null,null,"Hazır kuru karışım","Çorba",null,null,{"$f":"IFERROR(SUM(AlışverişListesi[Miktar]*AlışverişListesi[Fiyat]), \"\")","v":{"v":0,"d":"0.00 ₺"}}]
[null,null,"Ekmek","Unlu mamüller",null,null,{"$f":"IFERROR(SUM(AlışverişListesi[Miktar]*AlışverişListesi[Fiyat]), \"\")","v":{"v":0,"d":"0.00 ₺"}}]
[null,null,"Patates cipsi","Atıştırmalık",null,null,{"$f":"IFERROR(SUM(AlışverişListesi[Miktar]*AlışverişListesi[Fiyat]), \"\")","v":{"v":0,"d":"0.00 ₺"}}]
[null,null,"Çubuk kraker","Atıştırmalık",null,null,{"$f":"IFERROR(SUM(AlışverişListesi[Miktar]*AlışverişListesi[Fiyat]), \"\")","v":{"v":0,"d":"0.00 ₺"}}]
[null,null,"Dondurma","Atıştırmalık",null,null,{"$f":"IFERROR(SUM(AlışverişListesi[Miktar]*AlışverişListesi[Fiyat]), \"\")","v":{"v":0,"d":"0.00 ₺"}}]
[null,null,"Kurabiye","Atıştırmalık",null,null,{"$f":"IFERROR(SUM(AlışverişListesi[Miktar]*AlışverişListesi[Fiyat]), \"\")","v":{"v":0,"d":"0.00 ₺"}}]
[null,null,"Kağıt tabak","Diğer malzemeler",null,null,{"$f":"IFERROR(SUM(AlışverişListesi[Miktar]*AlışverişListesi[Fiyat]), \"\")","v":{"v":0,"d":"0.00 ₺"}}]
[null,null,"Peçete","Diğer malzemeler",null,null,{"$f":"IFERROR(SUM(AlışverişListesi[Miktar]*AlışverişListesi[Fiyat]), \"\")","v":{"v":0,"d":"0.00 ₺"}}]
[{"$nulls":6},{"$f":"SUBTOTAL(109,AlışverişListesi[Toplam Fiyat])","v":{"v":0,"d":"0.00 ₺"}}]